Cogmind - Beta 15 @@@ ROGUE MODE // 2025.05.28 @ 01:00:58 Player: Darcyisverycute Result: Destroyed by 2S-VXX(E) with Barrage Gun Performance ------------- Evolutions (2) 1000 Regions Visited (10) 2000 Robots Destroyed (171) 855 Value Destroyed (4970) 4970 Prototype IDs (41) 820 Alien Tech Used (0) 0 Bonus (683) 683 TOTAL SCORE: 10328 Bonus ------- Follower Combat Kills 383 Aligned with FarCom 300 Cogmind --------- Core Integrity 0/550 Matter 235/300 Energy 95/100 System Corruption 5% Temperature Cool (0) Movement Core (950) Ox18 Location -8/Scraptown Parts ------- > --- POWER (1) -------- (None) > --- PROPULSION (3) --- (None) > --- UTILITY (4) ------ High-capacity Storage Unit Makeshift Weapon Shielding > --- WEAPON (3) ------- 8R-AWN's Boregun Advanced EMP Blaster Longsword +1 > --- INVENTORY (20) --- Mini Assault Cannon Siege Cannon Scatter Rocket Array CPS Tube (2) Peak State ------------ > --- POWER ------------ Heavy Ion Engine > --- PROPULSION ------- Aluminum Leg Carbon-fiber Leg Advanced Myomer Leg > --- UTILITY ---------- High-capacity Storage Unit 8R-AWN's Armor/EX > --- WEAPON ----------- Heavy Particle Gun Heavy Particle Gun Mini Assault Cannon > --- INVENTORY -------- Light Nuclear Core Armored Treads Gravity Neutralizer Improved Sensor Array Improved Signal Interpreter Advanced Targeting Computer Advanced Targeting Computer Advanced Weapon Cycler AS-neutralizer No. 17b Spread Laser Gauss Rifle AWS/Gauss 8R-AWN's Boregun Rocket Launcher Plasma Cutter Longsword +1 [Rating: 67] Favorites ----------- Power Nuclear Core Engine Heavy Ion Engine Power Core Nuclear Core Propulsion Armored Treads Treads Armored Treads Leg Advanced Myomer Leg Flight Unit Improved Flight Unit Utility High-capacity Storage Unit Device Cooling System Storage High-capacity Storage Unit Processor Salvage Targeting Computer Hackware Hacking Suite Protection Insulated Plating Weapon Heavy EM Shotgun Energy Gun Heavy EM Shotgun Energy Cannon EM Pulse Cannon Ballistic Gun Assault Rifle Ballistic Cannon Mini Assault Cannon Launcher Rocket Launcher Special Weapon CPS Tube Slashing Weapon Longsword +1 Build | -11 -10 -10 -9 -9 -9 -8 -8 -8 -8 -8 ------- Run | Yrd Mat Min Mat Min Exi Min Mat Sto Rec Scr Slots Evolved 4 | . . . 2 . . . 2 . . . Power . | . . . . . . . . . . . Propulsion 1 | . . . 1 . . . . . . . Utility 2 | . . . . . . . 2 . . . Weapon 1 | . . . 1 . . . . . . . Parts Attached 120 | 7 5 1 31 6 14 . 18 22 3 13 Power 8 | 1 1 . 2 1 1 . . 1 . 1 Engine 6 | 1 1 . 2 1 1 . . . . . Core 2 | . . . . . . . . 1 . 1 Reactor . | . . . . . . . . . . . Propulsion 29 | 2 1 . 8 2 5 . 3 4 . 4 Treads 24 | 2 1 . 7 2 3 . 1 4 . 4 Leg 4 | . . . . . 2 . 2 . . . Wheel . | . . . . . . . . . . . Hover . | . . . . . . . . . . . Flight 1 | . . . 1 . . . . . . . Utility 37 | 2 2 1 6 2 4 . 9 4 2 5 Device 16 | 1 . 1 3 . 2 . 4 3 2 . Storage 5 | 1 2 . 1 . . . . . . 1 Processor 4 | . . . 1 . 1 . . . . 2 Hackware 1 | . . . . . . . 1 . . . Protection 11 | . . . 1 2 1 . 4 1 . 2 Artifact . | . . . . . . . . . . . Weapon 46 | 2 1 . 15 1 4 . 6 13 1 3 Energy Gun 12 | 1 . . 3 . . . 3 3 1 1 Energy Cannon 3 | . . . 2 . . . . 1 . . Ballistic Gun 20 | 1 1 . 7 1 3 . 2 5 . . Ballistic Cannon 2 | . . . . . . . 1 . . 1 Launcher 6 | . . . 2 . . . . 4 . . Special Weapon 2 | . . . 1 . . . . . . 1 Impact Weapon . | . . . . . . . . . . . Slashing Weapon 1 | . . . . . 1 . . . . . Piercing Weapon . | . . . . . . . . . . . Special Melee Weapon . | . . . . . . . . . . . Unidentified Prototypes 18 | . . . 4 . 4 . 4 5 . 1 Parts Lost 39 | . 4 . 1 5 7 . 8 2 . 12 Power 4 | . 1 . . . 1 . . 1 . 1 Propulsion 12 | . 1 . . 2 3 . 2 . . 4 Utility 11 | . 1 . . 2 1 . 2 1 . 4 Weapon 12 | . 1 . 1 1 2 . 4 . . 3 Highest Loss Streak 6 | . 3 . 1 2 4 . 4 1 . 6 To Critical Strikes 5 | . . . . . 4 . . . . 1 Average Backups 16 | . 13 17 19 18 10 15 17 18 18 16 Power . | . . . . 1 1 1 . . . . Propulsion 2 | . . 1 3 4 . . . 2 3 2 Utility 6 | . 9 11 8 7 2 7 7 7 7 5 Weapon 6 | . 3 4 5 4 5 6 6 7 8 7 Tool/Special . | . . . . . . . . . . . Unused Backups 49 | . 1 . 13 . 6 . 6 7 . 16 Power 5 | . . . . . 3 . 1 . . 1 Propulsion 7 | . . . 1 . . . 1 3 . 2 Utility 18 | . 1 . 8 . 3 . . 2 . 4 Weapon 17 | . . . 4 . . . 4 1 . 8 Tool/Special 2 | . . . . . . . . 1 . 1 Average Slot Usage (%) 94 | . 86 100 98 98 71 77 80 98 99 98 Engine 4 | . 13 14 11 11 8 . 7 5 . . Core 4 | . . . . . . . . 2 9 8 Treads 25 | . 28 28 31 33 29 11 1 18 27 26 Leg 2 | . . . . . 2 22 19 8 . . Device 10 | . 1 14 8 . . 11 12 13 17 12 Storage 9 | . 14 14 11 11 8 11 9 9 9 9 Protection 9 | . . . 2 9 9 . 7 13 9 13 Energy Gun 11 | . 14 14 6 . . . 11 6 16 17 Energy Cannon 3 | . . . 5 . . . . 1 8 4 Ballistic Gun 7 | . 13 14 19 30 7 11 7 15 . . Special Weapon 1 | . . . . . . . . . . 4 Peak Build Rating 67 | 9 10 9 19 16 41 41 67 49 45 53 Average Rating 31 | 4 7 9 16 14 17 41 41 41 41 38 On Entrance 24 | . 9 8 9 15 14 41 41 49 45 41 Naked Turns . | . . . . . . . . . . . Heaviest Build 68 | 12 47 48 66 63 58 50 67 67 67 68 Greatest Support 67 | 40 40 40 60 60 60 50 67 62 60 62 Greatest Overweight (x) 2 | . 1 1 2 1 2 . 2 1 1 1 Average Overweight (x) . | . . 1 . . . . . . 1 . Largest Inventory Capacity 20 | 8 20 20 20 20 20 20 20 20 20 20 Average Capacity 19 | 5 18 20 20 20 17 20 20 20 20 20 Most Carried 20 | 3 20 18 20 20 20 18 20 20 20 20 Average Carried 17 | . 13 17 19 18 11 18 19 19 20 17 Final Capacity 20 | 8 20 20 20 20 20 20 20 20 20 20 Final Carried 20 | 3 18 18 20 15 18 18 20 20 20 6 Class Distribution -------------------- 45% | Commander-Tank 17% | Tank 12% | Mutant 8% | Scavenger-Mutant 6% | Scavenger-Gunner 5% | Scavenger-Tank Dominant Class ---------------- Mutant | -10/Materials Scavenger-Mutant | -10/Mines Scavenger-Gunner | -9/Materials Tank | -9/Mines Scavenger-Mutant | -9/Exiles Scavenger-Mutant | -8/Mines Scavenger-Tank | -8/Materials Tank | -8/Storage Commander-Tank | -8/Recycling Commander-Tank | -8/Scraptown Resources | -11 -10 -10 -9 -9 -9 -8 -8 -8 -8 -8 ----------- Run | Yrd Mat Min Mat Min Exi Min Mat Sto Rec Scr Matter Collected 4635 | 327 301 16 772 636 338 . 660 1202 132 251 Remotely . | . . . . . . . . . . . Salvage Created 7745 | 244 699 . 1126 341 171 . 806 1261 1220 1877 Parts 342 | 20 52 . 71 26 7 . 36 67 44 19 Haulers Intercepted 13 | . 2 . 4 . . . 3 4 . . Recyclers Shooed 5 | . 3 . . . . . 1 . 1 . Parts Field Recycled . | . . . . . . . . . . . Retrieved Matter . | . . . . . . . . . . . Parts Self-Destructed . | . . . . . . . . . . . Prevented . | . . . . . . . . . . . Kills | -11 -10 -10 -9 -9 -9 -8 -8 -8 -8 -8 ------- Run | Yrd Mat Min Mat Min Exi Min Mat Sto Rec Scr Combat Hostiles Destroyed 140 | . 19 . 21 28 5 . 13 22 7 25 Melee 27 | . . . . . 1 . . . 1 25 Guns 84 | . 19 . 15 13 3 . 11 19 4 . Cannons 8 | . . . 5 . . . . 1 2 . AOE 21 | . . . 1 15 1 . 2 2 . . Classes Destroyed 18 | 3 5 . 2 3 1 . 1 . . 3 Worker 8 | 2 2 . . 1 . . . 3 . . Builder 4 | . . . 1 1 . . 1 1 . . Tunneler 8 | 7 . . . 1 . . . . . . Hauler 13 | . 2 . 4 . . . 3 4 . . Recycler 11 | 1 . . . . . . 2 1 7 . Operator 3 | . 1 . . . . . 1 1 . . Watcher 7 | . 1 . 3 . . . 1 2 . . Swarmer 22 | . 9 . 7 3 . . 3 . . . Grunt 36 | . 10 . 6 2 . . 5 11 2 . Duelist 1 | . . . . 1 . . . . . . Sentry 23 | . . . 8 . . . 1 10 4 . Demolisher 2 | . . . . 2 . . . . . . Hunter 6 | . . . . . . . 4 1 1 . Guru 3 | . . . . . . . . . . 3 Scrapper 12 | . . . . . . . . . . 12 Elite 10 | . . . . . . . . . . 10 Zionite 1 | . . . . . 1 . . . . . Assembled 24 | . . . . 20 4 . . . . . Best Kill Streak 25 | 4 5 . 5 19 3 . 7 3 4 25 Combat Bots Only 25 | . 5 . 4 19 3 . 5 3 3 25 Max Kills in Single Turn 2 | 2 2 . 1 2 1 . 1 2 2 1 Gunslinging 1 | . 1 . . 1 . . . . . . Exploded 2 | . . . 1 2 1 . 1 2 . . Melee 1 | . . . . . 1 . . . 1 1 Uniques/NPCs Destroyed 2 | . . . . . 1 . . . . 1 8R-AWN (-9/Exiles) Triborg (-8/Scraptown) Combat | -11 -10 -10 -9 -9 -9 -8 -8 -8 -8 -8 -------- Run | Yrd Mat Min Mat Min Exi Min Mat Sto Rec Scr Hostile Shots Fired 630 | . 76 . 53 79 76 . 88 97 9 152 Missed 151 | . 13 . 23 23 18 . 26 24 6 18 Hits 479 | . 63 . 30 56 58 . 62 73 3 134 Melee 11 | . . . . 10 1 . . . . . Projectile 468 | . 63 . 30 46 57 . 62 73 3 134 AOE 15 | . . . . 14 . . . 1 . . Critical Strikes 31 | . . . . . 16 . . 3 . 12 Actively Blocked 2 | . . . . . . . . . . 2 Damage Taken 8244 | . 652 . 418 1347 927 . 950 1249 48 2653 Core 945 | . 147 . 14 96 128 . 104 76 . 380 Absorbed by Shields . | . . . . . . . . . . . Reduced by Siege Mode 41 | . . . . . . . . . . 41 Redirected to Shielding 66 | . . . . . . . . . . 66 Ignored by Resistances 3 | . . . . . . . . 3 . . Core Remaining (%) 60 | 100 . 41 . . . 40 . . . . Volleys Fired 365 | 19 65 . 53 44 15 . 44 92 19 14 Largest 3 | 2 2 . 3 3 3 . 3 3 3 3 Hottest 165 | 60 60 . 124 73 66 . 165 115 163 100 Shots Fired 816 | 35 128 . 154 94 30 . 117 207 34 17 Gun 704 | 35 128 . 123 77 27 . 104 185 18 7 Cannon 79 | . . . 27 . . . 8 20 16 8 Launcher 30 | . . . 3 17 3 . 5 2 . . Special 3 | . . . 1 . . . . . . 2 Kinetic 535 | 19 64 . 94 77 27 . 77 159 10 8 Thermal 177 | 16 64 . 16 . . . 35 46 . . Explosive 29 | . . . 3 17 3 . 5 1 . . Electromagnetic 73 | . . . 41 . . . . 1 24 7 Robot Hit Streak 27 | 8 15 . 15 7 2 . 21 18 13 27 Robot Miss Streak 8 | 2 4 . 4 3 4 . 3 8 2 1 Penetration Max . | . . . . . . . . . . . Secondary Targets 11 | . 4 . 1 4 2 . . . . . Max Gunslinging Chain 1 | . 1 . 1 1 1 . . . . . Autonomous 25 | . . . . . . . 25 . . . Shots Hit Robots 586 | 24 88 . 85 47 34 . 76 131 37 64 Core Hits 327 | 10 39 . 46 55 14 . 33 82 20 28 Critical Kills 2 | 1 . . 1 . . . . . . . Critical Parts Destroyed 2 | . . . 1 . . . . 1 . . Critical Strikes 15 | 1 . . 2 . 2 . 1 2 . 7 Burn 2 | . . . . . . . 1 1 . . Destroy 4 | 1 . . 2 . . . . 1 . . Sever 9 | . . . . . 2 . . . . 7 Melee Attacks 102 | . . . . . 24 . 5 1 17 55 Impact . | . . . . . . . . . . . Slashing 102 | . . . . . 24 . 5 1 17 55 Piercing . | . . . . . . . . . . . Sneak Attacks 7 | . . . . . . . 1 1 5 . Combat Hostiles . | . . . . . . . . . . . Follow-up Attacks . | . . . . . . . . . . . Damage Inflicted 14690 | 318 1050 . 1351 1639 1252 . 2088 2455 1789 2748 Guns 7002 | 318 1046 . 967 562 146 . 1346 2112 350 155 Cannons 543 | . . . 359 . . . . 86 98 . Explosions 1785 | . . . 25 1070 59 . 505 126 . . Melee 5323 | . . . . . 1046 . 218 125 1341 2593 Ramming 37 | . 4 . . 7 1 . 19 6 . . Kinetic 4647 | 178 518 . 637 562 146 . 932 1674 . . Thermal 1820 | 140 528 . 214 . . . 414 524 . . Explosive 1745 | . . . . 1070 59 . 505 111 . . Electromagnetic 1118 | . . . 500 . . . . 15 448 155 Impact . | . . . . . . . . . . . Slashing 5323 | . . . . . 1046 . 218 125 1341 2593 Piercing . | . . . . . . . . . . . Highest Corruption 15 | . . . 5 10 15 15 . . . 5 Average Corruption 8 | . . . 5 7 11 15 . . . 4 Corruption Purged . | . . . . . . . . . . . Corruption Blocked . | . . . . . . . . . . . Effects 138 | . . . 34 42 54 3 . . . 5 Message Errors 31 | . . . 6 10 13 1 . . . 1 Matter Fused 32 | . . . 7 7 16 . . . . 2 Heat Flow Errors 22 | . . . 5 10 6 . . . . 1 Energy Discharges 15 | . . . 2 4 8 1 . . . . Parts Fused 2 | . . . 1 . 1 . . . . . Data Loss (minor) 18 | . . . 4 5 7 1 . . . 1 Data Loss (major) 8 | . . . 3 3 2 . . . . . Misfires 6 | . . . 4 1 1 . . . . . Alerts 3 | . . . 1 2 . . . . . . Weapon Failures 1 | . . . 1 . . . . . . . Overload Shots . | . . . . . . . . . . . Overflow Damage 610 | . . . . 14 8 . 40 85 405 58 Projectiles . | . . . . . . . . . . . Explosions 43 | . . . . 14 8 . 21 . . . Melee 567 | . . . . . . . 19 85 405 58 Knockbacks . | . . . . . . . . . . . Impact . | . . . . . . . . . . . Kinetic . | . . . . . . . . . . . Secondary . | . . . . . . . . . . . Self-Inflicted Damage 292 | . . . 22 116 . . 107 47 . . Shots 11 | . . . 1 4 . . 4 2 . . Rammed 4 | . 1 . . 2 1 . . . . . Targets Rammed 9 | . 1 . . 2 1 . 3 2 . . Kicked 5 | . . . . . . . 3 2 . . Crushed . | . . . . . . . . . . . Highest Temperature 568 | . 87 . 555 250 334 . 180 366 93 568 Average Temperature 103 | . 27 . 95 68 167 . 37 121 30 254 Received Heat Transfer 2356 | . 267 . 108 18 80 . 270 558 27 1028 Effects 13 | . . . 3 . 3 . . 3 . 4 Shutdowns 1 | . . . 1 . . . . . . . Energy Bleed 2 | . . . 1 . 1 . . . . . Interference 1 | . . . . . 1 . . . . . Matter Decay 3 | . . . . . 1 . . 1 . 1 Short Circuit 2 | . . . . . . . . . . 2 Damage (minor) 4 | . . . 1 . . . . 2 . 1 Siege Activations 1 | . . . . . . . . . . 1 Total Turns 18 | . . . . . . . . . . 18 Longest Duration 18 | . . . . . . . . . . 18 Martial Activations . | . . . . . . . . . . . Shielding Activations . | . . . . . . . . . . . Robots Disrupted . | . . . . . . . . . . . Combat Hostiles . | . . . . . . . . . . . Robots Corrupted . | . . . . . . . . . . . Combat Hostiles . | . . . . . . . . . . . Parts Fried 3 | . . . 1 . . . . . 2 . Impact Corruptions 1 | . 1 . . . . . . . . . Robots Melted . | . . . . . . . . . . . Combat Hostiles . | . . . . . . . . . . . Parts Melted 10 | . 1 . . . . . 4 . . 5 Heat Transferred 3545 | 325 1150 . 383 . . . 851 836 . . Parts Sabotaged . | . . . . . . . . . . . Parts Stolen . | . . . . . . . . . . . Parts Stripped . | . . . . . . . . . . . Power Chain Reactions 2 | . . . 1 . . . . 1 . . Alert | -11 -10 -10 -9 -9 -9 -8 -8 -8 -8 -8 ------- Run | Yrd Mat Min Mat Min Exi Min Mat Sto Rec Scr Maximum Alert Level 1 | . . . 1 . . . . 1 . . Low Security (%) 95 | 100 100 100 93 100 . 100 100 81 100 . Level 1 4 | . . . 6 . . . . 18 . . Level 2 . | . . . . . . . . . . . Level 3 . | . . . . . . . . . . . Level 4 . | . . . . . . . . . . . Level 5 . | . . . . . . . . . . . High Security . | . . . . . . . . . . . Max Security . | . . . . . . . . . . . Peak Influence 239 | 15 150 53 218 78 . . 136 239 155 . Initial 84 | . . 53 . 78 . . . 7 84 . Average 61 | 1 43 30 100 19 . . 61 126 30 . Influence Increases 3410 | 50 549 . 718 276 . . 483 820 484 30 Destroy 0b10 Robot/C 1800 | . 380 . 420 160 . . 260 440 140 . Destroy 0b10 Robot/NC 310 | 50 30 . 40 15 . . 40 60 60 15 Destroy Leader 490 | . 96 . 134 30 . . 78 152 . . Allied During Kill 96 | . . . . . . . . . 81 15 Successful Hack 128 | . 13 . 62 . . . 10 24 19 . Select Force Hacks 210 | . 30 . . . . . . . 180 . Disable Machine 135 | . . . 15 . . . 30 90 . . Destroy Structure 196 | . . . 32 71 . . 50 39 4 . Partial Spotted 15 | . . . . . . . 15 . . . Lose Combat Pursuer 30 | . . . 15 . . . . 15 . . Influence Decreases 3410 | 50 411 135 521 476 . . 465 622 700 30 Entered New Map 353 | . . 85 3 122 . . . 11 132 . Time Decay 2815 | 50 374 50 482 306 . . 385 600 568 . Lost Part 186 | . 37 . 10 48 . . 80 11 . . Lost Ally 30 | . . . . . . . . . . 30 Purge Threat 26 | . . . 26 . . . . . . . Squads Dispatched 11 | . 5 . . . . . 3 3 . . Investigation 4 | . 3 . . . . . 1 . . . Extermination . | . . . . . . . . . . . Reinforcement 7 | . 2 . . . . . 2 3 . . Assault . | . . . . . . . . . . . Garrison . | . . . . . . . . . . . Intercept . | . . . . . . . . . . . Searches Triggered . | . . . . . . . . . . . Construction Impeded 3 | . . . . . . . 2 1 . . Haulers Reinforced . | . . . . . . . . . . . Active Scanning Responses . | . . . . . . . . . . . Cargo Convoy Interrupts . | . . . . . . . . . . . Stealth | -11 -10 -10 -9 -9 -9 -8 -8 -8 -8 -8 --------- Run | Yrd Mat Min Mat Min Exi Min Mat Sto Rec Scr Distress Signals 8 | . 2 . 2 . . . 3 1 . . Communications Jammed . | . . . . . . . . . . . Distress Signals . | . . . . . . . . . . . Times Spotted 199 | . 27 . 30 27 5 . 24 26 5 55 Peak Tracking Total 39 | . 5 . 6 6 9 . 6 3 3 39 Tactical Retreats 7 | . . . 1 1 . . . 1 . 4 Traps | -11 -10 -10 -9 -9 -9 -8 -8 -8 -8 -8 ------- Run | Yrd Mat Min Mat Min Exi Min Mat Sto Rec Scr Traps Triggered 8 | . 2 . 5 . . . . 1 . . Indirectly 1 | . . . . . . . . 1 . . Trap Hack Attempts . | . . . . . . . . . . . Triggered . | . . . . . . . . . . . Disarmed . | . . . . . . . . . . . Reprogrammed . | . . . . . . . . . . . Reused . | . . . . . . . . . . . Traps Extracted . | . . . . . . . . . . . Installed . | . . . . . . . . . . . Triggered . | . . . . . . . . . . . Machines | -11 -10 -10 -9 -9 -9 -8 -8 -8 -8 -8 ---------- Run | Yrd Mat Min Mat Min Exi Min Mat Sto Rec Scr Machines Disabled 17 | . . . 1 . 4 . 2 6 . 4 Max in Single Turn 2 | . . . 1 . 1 . 1 1 . 2 Garrison Access 1 | . . . . . . . . 1 . . Machines Repaired . | . . . . . . . . . . . Machines Dismantled . | . . . . . . . . . . . Machines Sabotaged . | . . . . . . . . . . . Overloaded Fab Kills . | . . . . . . . . . . . Hacking | -11 -10 -10 -9 -9 -9 -8 -8 -8 -8 -8 --------- Run | Yrd Mat Min Mat Min Exi Min Mat Sto Rec Scr Machines Accessed 39 | . 6 . 9 . 1 . 3 8 12 . Terminals 30 | . 5 . 9 . . . 3 7 6 . Fabricators . | . . . . . . . . . . . Repair Stations . | . . . . . . . . . . . Recycling Units 7 | . 1 . . . . . . . 6 . Scanalyzers . | . . . . . . . . . . . Garrison Access 1 | . . . . . . . . 1 . . Total Hacks 102 | . 17 . 29 . 1 . 9 23 23 . Successful 58 | . 10 . 19 . 1 . 3 10 15 . Failed 43 | . 7 . 9 . . . 6 13 8 . Catastrophic 7 | . 1 . 2 . . . 2 2 . . Database Lockouts 1 | . . . 1 . . . . . . . Manual 80 | . 17 . 17 . 1 . 7 13 25 . Terminals 88 | . 16 . 29 . . . 9 18 16 . Fabricators . | . . . . . . . . . . . Repair Stations . | . . . . . . . . . . . Recycling Units 8 | . 1 . . . . . . . 7 . Scanalyzers . | . . . . . . . . . . . Garrison Access 5 | . . . . . . . . 5 . . Terminal Hacks 23 | . 1 . 10 . 1 . 3 6 2 . Record 1 | . . . . . . . 1 . . . Robot Analysis 7 | . 1 . 1 . . . 2 1 2 . Open Door 3 | . . . . . . . . 3 . . Branch Access Points 1 | . . . 1 . . . . . . . Alert Level 1 | . . . . . . . . 1 . . Unreport Threat 2 | . . . 2 . . . . . . . Locate Traps 3 | . . . 2 . . . . 1 . . Transport Status 1 | . . . 1 . . . . . . . Hauler Manifests 1 | . . . 1 . . . . . . . Zone Layout 2 | . . . 2 . . . . . . . Proto ID Catalog 1 | . . . . . 1 . . . . . Fabricator Hacks . | . . . . . . . . . . . Repair Station Hacks . | . . . . . . . . . . . Recycling Unit Hacks . | . . . . . . . . . . . Scanalyzer . | . . . . . . . . . . . Garrison Access Hacks 1 | . . . . . . . . 1 . . Seal Access 1 | . . . . . . . . 1 . . Unauthorized Hacks 34 | . 9 . 9 . . . . 3 13 . Terminals 27 | . 8 . 9 . . . . 3 7 . Botnet 12 | . 3 . 4 . . . . 3 2 . Skim 15 | . 5 . 5 . . . . . 5 . Fabricators . | . . . . . . . . . . . Repair Stations . | . . . . . . . . . . . Recycling Units 7 | . 1 . . . . . . . 6 . Tunnel 7 | . 1 . . . . . . . 6 . Scanalyzers . | . . . . . . . . . . . Garrison Access . | . . . . . . . . . . . Data Cores Recovered . | . . . . . . . . . . . Used . | . . . . . . . . . . . Hacking Detections 28 | . 5 . 7 . . . 3 6 7 . Full Trace Events 1 | . . . . . . . 1 . . . Feedback Events . | . . . . . . . . . . . Feedback Blocked . | . . . . . . . . . . . Robot Schematics Acquired . | . . . . . . . . . . . Robots Built . | . . . . . . . . . . . Authchips . | . . . . . . . . . . . Time . | . . . . . . . . . . . Total Robot Build Rating . | . . . . . . . . . . . Part Schematics Acquired . | . . . . . . . . . . . Parts Built . | . . . . . . . . . . . Authchips . | . . . . . . . . . . . Time . | . . . . . . . . . . . Total Part Build Rating . | . . . . . . . . . . . Parts Repaired . | . . . . . . . . . . . Time . | . . . . . . . . . . . Parts Recycled . | . . . . . . . . . . . Recycled Matter . | . . . . . . . . . . . Retrieved Matter . | . . . . . . . . . . . Retrieved Components . | . . . . . . . . . . . Parts Scanalyzed . | . . . . . . . . . . . Part Schematics Acquired . | . . . . . . . . . . . Parts Damaged . | . . . . . . . . . . . Bothacking | -11 -10 -10 -9 -9 -9 -8 -8 -8 -8 -8 ------------ Run | Yrd Mat Min Mat Min Exi Min Mat Sto Rec Scr Used RIF Installer . | . . . . . . . . . . . Robots Hacked . | . . . . . . . . . . . Non-combat . | . . . . . . . . . . . Combat . | . . . . . . . . . . . Robot Hacks Applied . | . . . . . . . . . . . Relay Couplers Released . | . . . . . . . . . . . Fabnet Peak Effective % . | . . . . . . . . . . . Robots Rewired 17 | . . . . . . . . . 17 . Allies Hacked . | . . . . . . . . . . . Hacks Repelled . | . . . . . . . . . . . Allies | -11 -10 -10 -9 -9 -9 -8 -8 -8 -8 -8 -------- Run | Yrd Mat Min Mat Min Exi Min Mat Sto Rec Scr Total Allies 27 | . . . . . . . . 10 17 . Largest Group 27 | . . . . . . . . 10 27 27 Highest-Rated Group 483 | . . . . . . . . 173 478 483 Highest-Rated Ally 34 | . . . . . . . . 29 34 34 Total Orders 73 | . . . . . . . . . 13 60 STAY 25 | . . . . . . . . . 3 22 FOLLOW 42 | . . . . . . . . . 10 32 DROP 2 | . . . . . . . . . . 2 PICKUP 3 | . . . . . . . . . . 3 COLLECT 1 | . . . . . . . . . . 1 Ally Attacks 161 | . . . . . . . . . 4 157 Total Damage 2583 | . . . . . . . . . 46 2537 Kills 27 | . . . . . . . . . . 27 Allies Corrupted . | . . . . . . . . . . . Allies Melted . | . . . . . . . . . . . Intel | -11 -10 -10 -9 -9 -9 -8 -8 -8 -8 -8 ------- Run | Yrd Mat Min Mat Min Exi Min Mat Sto Rec Scr Active Infowar (turns) 9323 | 54 173 109 741 . 75 67 1018 1481 3068 2537 Sensors 7030 | . . . . . . . 1 1424 3068 2537 Terrain 967 | 54 173 . . . . . 540 117 83 . Seismic 1470 | . . 109 741 . 75 67 478 . . . Robot Analysis Total 7 | . 1 . 1 . . . 2 1 2 . Derelict Logs Recovered 1 | . . . . 1 . . . . . . Drone Launches . | . . . . . . . . . . . Drone Recoveries . | . . . . . . . . . . . Exploration | -11 -10 -10 -9 -9 -9 -8 -8 -8 -8 -8 ------------- Run | Yrd Mat Min Mat Min Exi Min Mat Sto Rec Scr Turns Passed 18777 | 390 1284 109 1638 1276 1461 67 1168 2153 3068 6163 Spaces Moved 7591 | 208 449 45 723 554 810 52 473 816 1110 2351 Core 10 | 10 . . . . . . . . . . Treads 6723 | 198 449 45 723 554 714 . . 579 1110 2351 Legs 858 | . . . . . 96 52 473 237 . . Wheels . | . . . . . . . . . . . Hover . | . . . . . . . . . . . Flight . | . . . . . . . . . . . Fastest Speed 50 | 50 160 240 160 160 130 130 120 161 250 161 Average Speed 216 | 154 226 240 178 201 161 130 178 210 250 249 Slowest Speed 320 | 160 240 240 320 240 320 130 260 250 250 250 Overloaded Moves . | . . . . . . . . . . . Propulsion Burnouts . | . . . . . . . . . . . Robots Hopped . | . . . . . . . . . . . Potential Cave-ins . | . . . . . . . . . . . Cave-ins Triggered . | . . . . . . . . . . . Exploration Rate (%) 57 | 5 65 14 71 97 70 20 38 94 97 56 Regions Visited 10 Branch Regions 7 Pre-discovered Areas 11 | . 2 . 3 . . . . . 6 . Known Exits Taken 5 | . 1 1 1 . . 1 1 . . . Unknown Exits Taken 5 | 1 . . . 1 1 . . 1 1 . Scrap Searched 4 | . . 1 . 2 . . . . . 1 Spaces Dug 182 | . . . 18 94 4 . 39 16 9 2 Terrain Destroyed 295 | . . . 30 147 20 . 51 32 9 6 Melee 1 | . . . . . . . 1 . . . Projectile 41 | . . . 1 . . . 10 15 9 6 AOE 253 | . . . 29 147 20 . 40 17 . . Terrain Rammed . | . . . . . . . . . . . Walls Destroyed . | . . . . . . . . . . . Machines Disabled . | . . . . . . . . . . . Actions | -11 -10 -10 -9 -9 -9 -8 -8 -8 -8 -8 --------- Run | Yrd Mat Min Mat Min Exi Min Mat Sto Rec Scr Total 9187 | 238 588 47 965 631 929 51 715 1085 1355 2583 Wait 511 | 2 47 1 80 20 . . 109 95 75 82 Move 7581 | 207 448 44 722 553 809 51 472 815 1109 2351 Hop . | . . . . . . . . . . . Pick Up 133 | 3 18 1 27 1 22 . 20 18 . 23 Fast Attach 62 | 7 2 . 14 . 13 . 15 8 2 1 Attach 49 | . 2 1 4 5 4 . 11 6 . 16 Detach 26 | . 1 . . . 11 . 7 2 . 5 Swap 84 | . 1 . 31 5 5 . 11 19 5 7 Drop 139 | . 3 . 34 1 25 . 18 27 2 29 Fire 365 | 19 65 . 53 44 15 . 44 92 19 14 Melee 102 | . . . . . 24 . 5 1 17 55 Ram . | . . . . . . . . . . . Kick 5 | . . . . . . . 3 2 . . Crush 4 | . 1 . . 2 1 . . . . . Escape Stasis . | . . . . . . . . . . . Rewire 126 | . . . . . . . . . 126 . Trap . | . . . . . . . . . . . Miscellaneous . | . . . . . . . . . . . Route ------- -11/Scrapyard -10/Materials (discovered 5 exits: *Mat x3 / *Min / Sub) -10/Mines (discovered 2 exits: *Mat x2) -9/Materials (discovered 4 exits: *Mat x3 / *Min) -9/Mines (discovered 3 exits: *Mat x2 / *Exi) -9/Exiles -8/Mines -8/Materials (discovered 5 exits: *Fac x3 / *Sto x2) -8/Storage (discovered 2 exits: *Fac / *Rec) -8/Recycling (discovered 2 exits: *Fac / [*Scr]) -8/Scraptown (discovered 1 exit: *Fac) History --------- Turn | Location | Event 27 | -11/Scrapyard | Discovered new exit (range 15) 391 | -11/Scrapyard | Entered Materials 392 | -10/Materials | Build established: Mutant 555 | -10/Materials | Discovered new exit (range 5) 738 | -10/Materials | Discovered new exit (range 16) 1427 | -10/Materials | Learned location of 2 exits from Mines 1510 | -10/Materials | Loaded intel: 8 terminal locations 1516 | -10/Materials | Identified exit to Mines 1516 | -10/Materials | Identified exit to Materials 1516 | -10/Materials | Identified exit to Subcaves 1536 | -10/Materials | Core integrity fell below 50% 1558 | -10/Materials | Learned location of 2 exits from Subcaves 1646 | -10/Materials | Lost 3 parts (1p1n1w) 1675 | -10/Materials | Entered Mines 1729 | -10/Mines | Received a Rocket Launcher from a helpful Derelict 1784 | -10/Mines | Entered Materials 1784 | -9/Materials | Evolved 2 slots: Propulsion x1, Weapon x1 1950 | -9/Materials | Central database locked down 2258 | -9/Materials | Build established: Scavenger-Gunner 2304 | -9/Materials | Discovered new exit (range 7) 2411 | -9/Materials | Learned location of Zion (-6) 2480 | -9/Materials | Identified exit to Mines 2480 | -9/Materials | Identified exit to Materials 2586 | -9/Materials | Learned Storage trap positions 2654 | -9/Materials | Learned 4 Recycling zone layouts 2706 | -9/Materials | Learned Storage garrison access intel 2796 | -9/Materials | Learned location of 3 exits from Materials 2859 | -9/Materials | Learned Storage emergency access door positions 3342 | -9/Materials | Build established: Tank 3422 | -9/Materials | Entered Mines 3547 | -9/Mines | Found a hidden stash of uninstalled traps 3610 | -9/Mines | Learned 4 Materials zone layouts 3868 | -9/Mines | Assembled infested the area 3873 | -9/Mines | Assisted by a Guerilla fighting off Assembled 4012 | -9/Mines | System corruption reached 10% 4021 | -9/Mines | Destroyed 19 combat bots 4049 | -9/Mines | Discovered exit to Materials (range 9) 4142 | -9/Mines | Discovered exit to Materials (range 11) 4683 | -9/Mines | Build established: Scavenger-Tank 4692 | -9/Mines | Deemed a non-threat by the Exiles lab entrance 4692 | -9/Mines | Discovered new exit (range 5) 4698 | -9/Mines | Entered Exiles 4744 | -9/Exiles | Met 8R-AWN 4769 | -9/Exiles | Met EX-HEX 4832 | -9/Exiles | Met EX-DEC 5017 | -9/Exiles | Build established: Scavenger-Mutant 5159 | -9/Exiles | Met EX-BIN 5178 | -9/Exiles | Aligned with FarCom system 5180 | -9/Exiles | Given EX-Vault access code 5223 | -9/Exiles | Opened EX-Vault 5233 | -9/Exiles | Found Longsword +1 5237 | -9/Exiles | Found AWS/Gauss 5244 | -9/Exiles | Found Lightpack 2.0 5280 | -9/Exiles | Warned to stay clear of 0b10 Research branches 5758 | -9/Exiles | Attacked by the Exiles 5879 | -9/Exiles | Lost 4 parts (1p1n1u1w) 5891 | -9/Exiles | Core integrity fell below 50% 5922 | -9/Exiles | Destroyed 8R-AWN 5924 | -9/Exiles | Found Prototype Ballistic Gun 5924 | -9/Exiles | Identified 8R-AWN's Boregun 5934 | -9/Exiles | Found Prototype Processor 5950 | -9/Exiles | Lost 3 parts (2n1w) 5986 | -9/Exiles | Found Prototype Protection 6011 | -9/Exiles | Found Prototype Device 6011 | -9/Exiles | Identified AS-neutralizer No. 17b 6146 | -9/Exiles | Discovered new exit (range 12) 6159 | -9/Exiles | Stole two prototypes: Longsword +1, AWS/Gauss 6159 | -9/Exiles | Entered Mines 6218 | -8/Mines | Discovered exit to Materials (range 7) 6226 | -8/Mines | Entered Materials 6226 | -8/Materials | Evolved 2 slots: Utility x2 6227 | -8/Materials | Identified exit to Factory 6227 | -8/Materials | Identified exit to Storage 6737 | -8/Materials | Lost 4 parts (1u3w) 7009 | -8/Materials | Identified 8R-AWN's Armor/EX 7265 | -8/Materials | Build established: Scavenger-Tank 7394 | -8/Materials | Entered Storage 7395 | -8/Storage | Loaded intel: 18 trap records 7397 | -8/Storage | Loaded intel: 1 garrison access location 7799 | -8/Storage | Build established: Tank 8582 | -8/Storage | Discovered exit to Factory (range 16) 8871 | -8/Storage | Found Prototype Launcher 8871 | -8/Storage | Identified Scatter Rocket Array 9174 | -8/Storage | Found Prototype Launcher 9174 | -8/Storage | Identified Gui. Missile Launcher 9451 | -8/Storage | Assisted by bots powering up and referring to "LRC-V3" 9524 | -8/Storage | Used back door to open Recycling access 9524 | -8/Storage | Discovered new exit (range 5) 9547 | -8/Storage | Entered Recycling 9547 | -8/Recycling | Accompanied by 10 allies 9548 | -8/Recycling | Identified exit to Factory 9757 | -8/Recycling | Build established: Commander-Mutant 10165 | -8/Recycling | Build established: Commander-Tank 11645 | -8/Recycling | Learned 2 Lower Caves zone layouts 11675 | -8/Recycling | Learned Factory stockpile data 11696 | -8/Recycling | Learned location of 3 exits from Factory 11706 | -8/Recycling | Learned 2 Lower Caves zone layouts 11707 | -8/Recycling | Learned location of 2 exits from Factory 11708 | -8/Recycling | Learned 4 Recycling zone layouts 11709 | -8/Recycling | Learned location of 1 exit from Storage 11737 | -8/Recycling | Learned Factory trap positions 12420 | -8/Recycling | Scanned before Scraplab entrance 12455 | -8/Recycling | Entered Scraplab 12475 | -8/Recycling | Discovered new exit (range 3) 12615 | -8/Recycling | Entered Scraptown 12615 | -8/Scraptown | Accompanied by 27 allies 14258 | -8/Scraptown | Visited Symbiants 14338 | -8/Scraptown | Discovered exit to Factory (range 11) 15715 | -8/Scraptown | Turned away by UFD registrar 15745 | -8/Scraptown | Visited Fellowship of the Rings 15770 | -8/Scraptown | Visited Spacefarers 16007 | -8/Scraptown | Visited Red Mages 16205 | -8/Scraptown | Visited IN-MT5's Study 16335 | -8/Scraptown | Visited Cave Peace 18534 | -8/Scraptown | Attacked by Scraptown defenders 18537 | -8/Scraptown | Allies destroyed Triborg 18546 | -8/Scraptown | Found Tri-treads 18552 | -8/Scraptown | Found Prototype Ballistic Cannon 18592 | -8/Scraptown | Identified Siege Cannon 18615 | -8/Scraptown | Core integrity fell below 50% 18662 | -8/Scraptown | Lost 23 allies 18674 | -8/Scraptown | Lost 5 parts (2n2u1w) 18683 | -8/Scraptown | Core integrity fell below 20% 18778 | -8/Scraptown | Destroyed by 2S-VXX(E) with Barrage Gun Last Messages --------------- 18735_ RZ-K86(E) destroyed. 18738_ 8H-HAU(E) destroyed. 18741_ B0-WQF(E) Ovr. Barrage Gun severed. 18744_ DF2LA&XG2IT:PPRTBLALO 18747_ B0-WQF(E) Ovr. Treads severed. 18749_ B0-WQF(E) destroyed. 18753_ Imp. Sensor Array destroyed. 18753_ Critical hit (Burn: +50). 18755_ Hcp. Battery destroyed. 18755_ Critical hit (Burn: +50). 18756_ Mak. Salvage Targeting Computer melted. 18756_ B6-7KZ(j) destroyed. 18760_ HM-3ZK(E) destroyed. 18762_ Destroyed Lgt. Deuterium Engine. 18764_ Hyb. Fission Core destroyed. 18766_ Mak. Microdissipator Network melted. 18766_ YN-ERX(j) destroyed. 18771_ W6-WVA(E) destroyed. Map ----- +----------------------------------------------------+ | #?# %!* #???????????????????????????? | | "#?# % #???????????????????????????? | | """"" "#?# & #???????????????????????????? | | """"" "#?#% * #???????????????????????????? | | """"" "#?# /%= ###?????????????????????????? | | "#?# = !!""#"#???????????????????????? | | ####### ##?# =%""""#???????????????????????? | | ### ##?#/ !""###???????????????????????? | | """ "#?#%* ###?????????????????????????? | | """""""#?# % =%* #########" ?????????????????? | | " #?# !%! ?????????????????? | | "" "" "" #?# !=[% % ??????????????????? | | #?#!% %!!! "???????????????????????? | | ##########?#%% =! *% "???????????????????????? | | ############=%! !%!* "???????????????????????? | | ![%=[= !!!! "???????????????????????? | | %**!==* !! % "???????????????????????? | | %!% % % !!= "???????????????????????? | | !*=== [![!%*!! "???????????????????????? | | !% =%! % ![%[] "???????????????????????? | | !!= [!*%]]#"???????????????????????? | | =* !=%[!]=#????????????????????????? | | [ ][====#"???????????????????????? | | ##############%### ##"[""??????????????????????? | | #?????????? #?# ####E"""#???????????????????? | | "#???????? %#?# *#??#@=![#???????????????????? | | "#?????? " =#?# #??#!!==#???????????????????? | | "#?????# """ #?# #??#[=!!#???????????????????? | | "#?????# """"" #?# #??#!!=%!#??????????????????? | | "#?????# ""X"" #?# #??#=!!=#* ?????????????????? | | "#?????? "" "" #?# #??# ## ????????????????? | | "#????????? #?# #??# #? ??????????????? | | "#?????????#?##??# #??# #?? /?????????????? | | ##???????????????# #??######??? ????????????? | | ?????????????????# #???????????? ???????????? | | ????????????###### #?????????????#;????????????? | | ??????????"""""""" #???????????????????????????? | | ?????????""" """"" #???????????????????????????? | | ?##????"""" " "" #???????????????????????????? | | ? ? #???????????????????????????? | | # ##???"" "" "" " #???????????????????????????? | | " "#?????""""""""" #???????????????????????????? | | " "#???????""""""" #???????????????????????????? | | " "#????????###### #???????????????????????????? | | "#?############# #???????????????????????????? | | "#?#"""""""""""# #???????????????????????????? | | "#?#""!![ "# #???????????????????????????? | | "#?#""! / / "# #???????????????????????????? | | "#?#"" "# #???????????????????????????? | | ""###""" """""""# #???????????????????????????? | +----------------------------------------------------+ Best States ------------- Heat Dissipation 53 Energy Generation 14 Energy Capacity 1150 Matter Stores 300 Matter Capacity 300 Sight Range 16 Robot Scan Range 15 Terrain Scan Range 16 Terrain Scan Density 10 Additional Mass Support 12 Armor Coverage 900 Resistance: EX 90 Resistance: EM 15 Weapon Shielding 15 Evasion (%) 55 Targeting Accuracy 8 Recoil Reduction 3 Salvage Targeting 1 Offensive Hacking 10 Item Schematics ----------------- None Robot Schematics ------------------ None Fabricated ------------ Nothing Repaired ---------- Nothing Alien Tech Used ----------------- None Achievements -------------- None Challenges ------------ None Game ------ Seed BackupReactiveCoupler Manual? 0 Play Time 02:04:41 Cumulative 257.1 hours Start 2025.05.25 @ 18:34:38 End 2025.05.28 @ 01:00:58 Sessions 9 Manual Loads 0 Difficulty Rogue Special Mode None Game No. 134 Rogue 126 Adventurer 8 Explorer 0 Win Type - Total 8 Types 4/0/2/1/0/0/0/0/0/1 Lore% 85 Gallery% 81 Achievement% 68 Wizard Run 0 Options --------- Layout 2 ASCII 0 Keyboard 1 Movement Numpad Keybinds 1 Fullscreen 1 Font 48/Smallcaps Map View 50x44 Zoom Use 0% Tactical HUD 1 Map Filters NONE Filters NONE Steam 1 RUN: a35cdb2a-c084-4800-9727-05199cf2064d